{"text_format":"1","workbook":"xlsx","n_sheets":1,"sheets":["Implemented"],"not_rendered":{"charts":0,"images":0,"macros":1,"external_links":1,"defined_names":3,"comments":0,"pivot_tables":2},"unopened":[],"bounds":{"document_bytes":16777216,"sheet_cells":100000,"rows_first":2000,"rows_last":500,"rows_between":2000,"halvings":0,"cell_chars":16384,"cell_head_chars":4096},"cells_cut":0,"cells_raw":0,"read":"whole","date_system":"1900"}

{"sheet":"Implemented","index":0,"n_rows":21,"n_cols":16,"rows_kept":21,"cut":false,"hidden":false,"merged":[]}
[]
[null,"Owner Name","Agreement #","Proposal\nType","MBP Accounts","Strategic Accounts",null,"Owner Name","Distinct Count of MBP Accounts","Distinct Count of Strategic Accounts",null,null,"Owner Name","Distinct MBP - No Blanks","Distinct Strategic - No Blanks","Distinct MBP - no blanks - v2"]
[null,"Person 1",320814,"Special",{"$f":"IF(D3=\"MBP\",C3,\"\")","v":""},{"$f":"IF(D3=\"Strategic\",C3,\"\")","v":""},null,"Person 1",1,5,null,null,"Person 1",null,4]
[null,"Person 1",4298,"Strategic","",4298,null,"Person 2",1,2,null,null,"Person 2",null,1]
[null,"Person 1",418167,"Strategic","",418167,null,"Person 3",2,3,null,null,"Person 3",1,2,1]
[null,"Person 1",7095,"Strategic","",7095,null,"Person 4",1,1,null,null,"Person 4",1,null,1]
[null,"Person 1",4255,"Strategic","",4255,null,"Person 5",1,1,null,null,"Person 5",null,1]
[null,"Person 2",319048,"Special","","",null,"Person 6",1,1,null,null,"Person 6",null,1]
[null,"Person 2",4379,"Strategic","",4379,null,"Person 7",2,2,null,null,"Person 7",1,1,1]
[null,"Person 3",116646,"Strategic","",116646,null,"Grand Total",4,11,null,null,"Grand Total",3,10,3]
[null,"Person 3",58967,"Strategic","",58967]
[null,"Person 3",7532,"MBP",7532,""]
[null,"Person 4",19386,"MBP",19386,""]
[null,"Person 4",19386,"MBP",19386,""]
[null,"Person 5",42983,"Strategic","",42983]
[null,"Person 5",42983,"Strategic","",42983]
[null,"Person 6",13825,"Strategic","",13825]
[null,"Person 7",8249,"MBP",8249,""]
[null,"Person 7",2988359,"Special","",""]
[null,"Person 7",67769,"Strategic","",67769]
[null,"Person 7",67769,"Strategic","",67769]